Cogmind - Beta 16 @@@ ROGUE MODE // 2025.12.25 @ 13:31:36 Player: PE-P51 Result: Destroyed by D-53 Grenadier with Mini Grenade Launcher Performance ------------- Evolutions (0) 0 Regions Visited (2) 400 Robots Destroyed (22) 110 Value Destroyed (432) 432 Prototype IDs (0) 0 Alien Tech Used (0) 0 Bonus (0) 0 TOTAL SCORE: 942 Bonus ------- None Cogmind --------- Core Integrity 0/250 Matter 75/300 Energy 76/100 System Corruption 1% Temperature Cool (15) Movement Core (1400) Ox27 Location -10/Mines Parts ------- > --- POWER (1) -------- (None) > --- PROPULSION (2) --- (None) > --- UTILITY (2) ------ Huge Storage Unit > --- WEAPON (2) ------- Beam Cannon > --- INVENTORY (25) --- Light Ion Engine Light Treads Light Treads Flight Unit Flight Unit Flight Unit Flight Unit Light Assault Rifle Light Assault Rifle Mini Grenade Launcher Mining Laser Peak State ------------ > --- POWER ------------ Light Ion Engine > --- PROPULSION ------- Improved Aluminum Leg Improved Aluminum Leg > --- UTILITY ---------- Medium Storage Unit Light Armor Plating > --- WEAPON ----------- Assault Rifle Assault Rifle > --- INVENTORY -------- Ion Engine Light Treads Light Treads Light Treads Light Treads Light Armor Plating Light Armor Plating Beam Cannon Mini Grenade Launcher Mini Grenade Launcher [Rating: 10] Favorites ----------- Power Light Ion Engine Engine Light Ion Engine Propulsion Improved Aluminum Leg Treads Light Treads Leg Improved Aluminum Leg Utility Light Armor Plating Storage Medium Storage Unit Protection Light Armor Plating Weapon Assault Rifle Energy Gun Small Laser Energy Cannon Beam Cannon Ballistic Gun Assault Rifle Launcher Mini Grenade Launcher Build | -11 -10 -10 ------- Run | Yrd Mat Min Slots Evolved . | . . . Power . | . . . Propulsion . | . . . Utility . | . . . Weapon . | . . . Parts Attached 17 | . 16 1 Power 1 | . 1 . Engine 1 | . 1 . Core . | . . . Reactor . | . . . Propulsion 4 | . 4 . Treads 2 | . 2 . Leg 2 | . 2 . Wheel . | . . . Hover . | . . . Flight . | . . . Utility 7 | . 7 . Device . | . . . Storage 4 | . 4 . Processor . | . . . Hackware . | . . . Protection 3 | . 3 . Artifact . | . . . Weapon 5 | . 4 1 Energy Gun . | . . . Energy Cannon 2 | . 1 1 Ballistic Gun 2 | . 2 . Ballistic Cannon . | . . . Launcher 1 | . 1 . Special Weapon . | . . . Impact Weapon . | . . . Slashing Weapon . | . . . Piercing Weapon . | . . . Special Melee Weapon . | . . . Unidentified Prototypes . | . . . Parts Lost 10 | . 3 7 Power 2 | . 1 1 Propulsion 2 | . . 2 Utility 3 | . 2 1 Weapon 3 | . . 3 Highest Loss Streak 7 | . 2 7 To Critical Strikes . | . . . Average Backups 11 | . 11 12 Power 1 | . 1 1 Propulsion 4 | . 4 6 Utility 2 | . 2 . Weapon 3 | . 3 5 Tool/Special . | . . . Unused Backups 21 | . 10 11 Power 2 | . 1 1 Propulsion 10 | . 4 6 Utility 1 | . 1 . Weapon 8 | . 4 4 Tool/Special . | . . . Average Slot Usage (%) 95 | . 95 94 Engine 13 | . 13 12 Treads 9 | . 8 26 Leg 18 | . 19 . Storage 14 | . 14 14 Protection 10 | . 10 12 Energy Gun 2 | . 3 . Ballistic Gun 20 | . 21 14 Launcher 3 | . 3 12 Peak Build Rating 10 | . 10 9 Average Rating 8 | . 8 8 On Entrance 7 | 6 6 9 Avg Prop Armor Cover (%) . | . . . Naked Turns . | . . . Heaviest Build 91 | 10 91 91 Greatest Support 40 | 20 40 40 Greatest Overweight (x) 2 | . 2 2 Average Overweight (x) . | . . 2 Largest Inventory Capacity 25 | . 25 25 Average Capacity 14 | . 14 25 Most Carried 17 | . 17 13 Average Carried 11 | . 11 12 Final Capacity 25 | 8 25 25 Final Carried 13 | 6 13 11 Class Distribution -------------------- 100% | Mutant Dominant Class ---------------- Mutant | -10/Materials Mutant | -10/Mines Resources | -11 -10 -10 ----------- Run | Yrd Mat Min Matter Collected 428 | 200 228 . Remotely . | . . . Salvage Created 593 | . 591 2 Parts 47 | . 44 3 Haulers Intercepted 2 | . 2 . Recyclers Shooed . | . . . Parts Field Recycled . | . . . Retrieved Matter . | . . . Parts Self-Destructed . | . . . Prevented . | . . . Parts Restored . | . . . Kills | -11 -10 -10 ------- Run | Yrd Mat Min Combat Hostiles Destroyed 13 | . 13 . Guns 10 | . 10 . AOE 3 | . 3 . Classes Destroyed 9 | . 8 1 Worker 1 | . . 1 Builder 1 | . 1 . Tunneler 1 | . 1 . Hauler 2 | . 2 . Recycler 1 | . 1 . Operator 1 | . 1 . Watcher 2 | . 2 . Swarmer 6 | . 6 . Grunt 7 | . 7 . Best Kill Streak 4 | . 4 1 Combat Bots Only 3 | . 3 . Max Kills in Single Turn 2 | . 2 1 Gunslinging 1 | . 1 . Exploded 2 | . 2 . Melee . | . . . Uniques/NPCs Destroyed . | . . . Combat | -11 -10 -10 -------- Run | Yrd Mat Min Hostile Shots Fired 71 | . 53 18 Missed 21 | . 19 2 Hits 50 | . 34 16 Projectile 50 | . 34 16 AOE 18 | . . 18 Damage Taken 1434 | . 693 741 Core 263 | . 92 171 Absorbed by Shields . | . . . Core Remaining (%) 100 | 100 . . Volleys Fired 73 | . 65 8 Largest 2 | . 2 2 Hottest 60 | . 60 60 Shots Fired 131 | . 121 10 Gun 116 | . 112 4 Cannon 2 | . . 2 Launcher 13 | . 9 4 Special . | . . . Kinetic 87 | . 83 4 Thermal 31 | . 29 2 Explosive 13 | . 9 4 Electromagnetic . | . . . Robot Hit Streak 8 | . 8 . Robot Miss Streak 5 | . 5 3 Penetration Max . | . . . Secondary Targets 1 | . 1 . Max Gunslinging Chain 1 | . 1 . Shots Hit Robots 62 | . 62 . Core Hits 42 | . 33 9 Critical Kills . | . . . Critical Parts Destroyed 1 | . 1 . Critical Strikes 1 | . 1 . Destroy 1 | . 1 . Melee Attacks . | . . . Impact . | . . . Slashing . | . . . Piercing . | . . . Sneak Attacks . | . . . Combat Hostiles . | . . . Follow-up Attacks . | . . . Damage Inflicted 1263 | . 1107 156 Guns 737 | . 687 50 Cannons 17 | . . 17 Explosions 494 | . 405 89 Melee . | . . . Ramming 15 | . 15 . Kinetic 624 | . 574 50 Thermal 130 | . 113 17 Explosive 494 | . 405 89 Electromagnetic . | . . . Impact . | . . . Slashing . | . . . Piercing . | . . . Highest Corruption 1 | . 1 1 Average Corruption 1 | . 1 1 Corruption Purged . | . . . Corruption Blocked . | . . . Effects 3 | . 2 1 Data Loss (minor) 2 | . 1 1 Alerts 1 | . 1 . Overload Shots . | . . . Overflow Damage 105 | . 105 . Projectiles . | . . . Explosions 105 | . 105 . Melee . | . . . Knockbacks . | . . . Impact . | . . . Kinetic . | . . . Secondary . | . . . Self-Inflicted Damage 156 | . 111 45 Shots 2 | . 1 1 Rammed 1 | . . 1 Targets Rammed 8 | . 7 1 Kicked 7 | . 7 . Crushed . | . . . Highest Temperature 58 | . 58 15 Average Temperature 19 | . 19 10 Received Heat Transfer 165 | . 165 . Siege Activations . | . . . Martial Activations . | . . . Shielding Activations . | . . . Robots Disrupted . | . . . Combat Hostiles . | . . . Robots Corrupted . | . . . Combat Hostiles . | . . . Parts Fried . | . . . Impact Corruptions . | . . . Robots Melted . | . . . Combat Hostiles . | . . . Parts Melted . | . . . Heat Transferred 287 | . 250 37 Parts Sabotaged . | . . . Parts Stolen . | . . . Parts Stripped . | . . . Power Chain Reactions . | . . . Alert | -11 -10 -10 ------- Run | Yrd Mat Min Maximum Alert Level . | . . . Low Security (%) 100 | . 100 100 Level 1 . | . . . Level 2 . | . . . Level 3 . | . . . Level 4 . | . . . Level 5 . | . . . High Security . | . . . Max Security . | . . . Peak Influence 145 | . 145 77 Initial 46 | . . 46 Average 42 | . 42 33 Influence Increases 548 | . 486 62 Destroy 0b10 Robot/C 260 | . 260 . Destroy 0b10 Robot/NC 45 | . 40 5 Destroy Leader 58 | . 58 . Successful Hack 6 | . 6 . Disable Machine 75 | . 30 45 Destroy Structure 89 | . 77 12 Lose Combat Pursuer 15 | . 15 . Influence Decreases 548 | . 366 182 Entered New Map 74 | . . 74 Time Decay 349 | . 309 40 Lost Part 88 | . 20 68 Purge Threat 37 | . 37 . Squads Dispatched 4 | . 4 . Investigation 3 | . 3 . Extermination . | . . . Reinforcement 1 | . 1 . Assault . | . . . Garrison . | . . . Intercept . | . . . Searches Triggered . | . . . Construction Impeded . | . . . Haulers Reinforced . | . . . Active Scanning Responses . | . . . Cargo Convoy Interrupts . | . . . Stealth | -11 -10 -10 --------- Run | Yrd Mat Min Distress Signals 4 | . 4 . Communications Jammed . | . . . Distress Signals . | . . . Times Spotted 25 | . 23 2 Peak Tracking Total 5 | . 5 2 Tactical Retreats 1 | . 1 . Traps | -11 -10 -10 ------- Run | Yrd Mat Min Traps Triggered 3 | . 3 . Indirectly . | . . . Trap Hack Attempts . | . . . Triggered . | . . . Disarmed . | . . . Reprogrammed . | . . . Reused . | . . . Traps Extracted . | . . . Installed . | . . . Triggered . | . . . Machines | -11 -10 -10 ---------- Run | Yrd Mat Min Machines Disabled 5 | . 2 3 Max in Single Turn 2 | . 1 2 Machines Repaired . | . . . Machines Dismantled . | . . . Machines Sabotaged . | . . . Overloaded Fab Kills . | . . . Hacking | -11 -10 -10 --------- Run | Yrd Mat Min Machines Accessed 4 | . 4 . Terminals 4 | . 4 . Fabricators . | . . . Repair Stations . | . . . Recycling Units . | . . . Scanalyzers . | . . . Garrison Access . | . . . Total Hacks 8 | . 8 . Successful 2 | . 2 . Failed 6 | . 6 . Catastrophic 2 | . 2 . Database Lockouts . | . . . Manual 5 | . 5 . Terminals 8 | . 8 . Fabricators . | . . . Repair Stations . | . . . Recycling Units . | . . . Scanalyzers . | . . . Garrison Access . | . . . Terminal Hacks 2 | . 2 . Robot Analysis 1 | . 1 . Unreport Threat 1 | . 1 . Fabricator Hacks . | . . . Repair Station Hacks . | . . . Recycling Unit Hacks . | . . . Scanalyzer . | . . . Garrison Access Hacks . | . . . Unauthorized Hacks . | . . . Terminals . | . . . Fabricators . | . . . Repair Stations . | . . . Recycling Units . | . . . Scanalyzers . | . . . Garrison Access . | . . . Data Cores Recovered . | . . . Used . | . . . Hacking Detections 3 | . 3 . Full Trace Events 2 | . 2 . Feedback Events . | . . . Feedback Blocked . | . . . Robot Schematics Acquired . | . . . Robots Built . | . . . Authchips . | . . . Time . | . . . Total Robot Build Rating . | . . . Part Schematics Acquired . | . . . Parts Built . | . . . Authchips . | . . . Time . | . . . Total Part Build Rating . | . . . Part Studies Acquired . | . . . Parts Repaired . | . . . Time . | . . . Parts Recycled . | . . . Recycled Matter . | . . . Retrieved Matter . | . . . Retrieved Components . | . . . Parts Scanalyzed . | . . . Part Schematics Acquired . | . . . Parts Damaged . | . . . Bothacking | -11 -10 -10 ------------ Run | Yrd Mat Min Used RIF Installer . | . . . Robots Hacked . | . . . Non-combat . | . . . Combat . | . . . Robot Hacks Applied . | . . . Relay Couplers Released . | . . . Fabnet Peak Effective % . | . . . Robots Rewired . | . . . Allies Hacked . | . . . Hacks Repelled . | . . . Allies | -11 -10 -10 -------- Run | Yrd Mat Min Total Allies . | . . . Largest Group . | . . . Highest-Rated Group . | . . . Highest-Rated Ally . | . . . Total Orders . | . . . Ally Attacks . | . . . Total Damage . | . . . Kills . | . . . Allies Corrupted . | . . . Allies Melted . | . . . Intel | -11 -10 -10 ------- Run | Yrd Mat Min Active Infowar (turns) . | . . . Robot Analysis Total 1 | . 1 . Derelict Logs Recovered 1 | . . 1 Drone Launches . | . . . Drone Recoveries . | . . . Exploration | -11 -10 -10 ------------- Run | Yrd Mat Min Turns Passed 1323 | . 1230 93 Spaces Moved 627 | 1 604 22 Core . | . . . Treads 137 | . 115 22 Legs 490 | 1 489 . Wheels . | . . . Hover . | . . . Flight . | . . . Fastest Speed 120 | 120 120 320 Average Speed 163 | 120 158 320 Slowest Speed 320 | 120 320 320 Overloaded Moves . | . . . Propulsion Burnouts . | . . . Robots Hopped . | . . . Potential Cave-ins . | . . . Cave-ins Triggered . | . . . Exploration Rate (%) 31 | 2 81 10 Regions Visited 2 Branch Regions 1 Pre-discovered Areas . | . . . Known Exits Taken . | . . . Unknown Exits Taken 2 | 1 1 . Scrap Searched . | . . . Spaces Dug 11 | . 11 . Terrain Destroyed 110 | . 90 20 Melee . | . . . Projectile . | . . . AOE 110 | . 90 20 Terrain Rammed . | . . . Walls Destroyed . | . . . Machines Disabled . | . . . Actions | -11 -10 -10 --------- Run | Yrd Mat Min Total 799 | . 766 33 Wait 43 | . 43 . Move 625 | . 603 22 Hop . | . . . Pick Up 19 | . 19 . Fast Attach . | . . . Attach 6 | . 4 2 Detach . | . . . Swap 12 | . 12 . Drop 13 | . 13 . Fire 73 | . 65 8 Melee . | . . . Ram . | . . . Kick 7 | . 7 . Crush 1 | . . 1 Escape Stasis . | . . . Rewire . | . . . Trap . | . . . Miscellaneous . | . . . Route ------- -11/Scrapyard -10/Materials (discovered 2 exits: [*Mat] / [*Min]) -10/Mines (discovered 1 exit: [*Mat]) History --------- Turn | Location | Event 1 | -11/Scrapyard | Discovered new exit (range 0) 1 | -11/Scrapyard | Entered Materials 325 | -10/Materials | Build established: Mutant 545 | -10/Materials | Discovered new exit (range 8) 1104 | -10/Materials | Discovered new exit (range 7) 1231 | -10/Materials | Entered Mines 1247 | -10/Mines | Learned 2 Materials zone layouts 1283 | -10/Mines | Discovered new exit (range 7) 1303 | -10/Mines | Assembled infested the area 1314 | -10/Mines | Core integrity fell below 50% 1318 | -10/Mines | Core integrity fell below 20% 1324 | -10/Mines | Destroyed by D-53 Grenadier with Mini Grenade Launcher Last Messages --------------- 01297_ K-01 Serf collects debris. 01303_ ALERT: Infestation in the mines, dispatching Demolisher response squad. 01305_ Core Extractor disabled. 01306_ C-45 Heavy ARC bursts open, deploying its payload. 01306_ D-53 Grenadier unfolds itself. 01307_ Core Extractor disabled. 01307_ K-01 Serf destroyed. 01310_ Ion Engine destroyed. 01311_ Mni. Grenade Launcher destroyed. 01315_ The unstable cave ceiling collapses. 01315_ Lgt. Treads destroyed. 01316_ Lgt. Armor Plating destroyed. 01318_ Assault Rifle destroyed. 01320_ The unstable cave ceiling collapses. 01320_ Assault Rifle destroyed. 01320_ K-01 Serf collects debris. 01321_ R-06 Scavenger collects Lgt. Ion Engine. 01322_ Lgt. Treads destroyed. 01323_ K-01 Serf collects debris. Map ----- +----------------------------------------------------+ | | | | | | | | | | | | | | | | | ?????????????????????????????????? | | ?????????????????????????????????? | | ?????????????????????????????????? | | ?????????????????????????????????? | | ?????????????????????????????????? | | ?????????????????????????????????? | | ?????????????????????????????????? | | ?????????????????????????????????? | | ?????????????????????????????????? | | ?????????????????????????????????? | | ???????????????????########??????? | | ???????????????????# # ##?????? | | ???????????????????# #####?? | | ??????????????????## #?? | | ??????????????????# #?? | | ??????????????????## #?? | | ??????????????????# #?? | | ???????????????????# @ #?? | | ???????????????????## #?? | | ????????????????????# #?? | | ????????????????????## #?? | | ?????????????????????# #?? | | ??????????????######## #?? | | ??????????????# dd #?? | | ??????????????# #?? | | ??????????????# ###### % #?? | | ??????????????# #???? #?? | | ??????????????# #????# r #?? | | ???????????#### ##???# < #?? | | ???????????# #???### k #?? | | ???????????# """#?????# #?? | | ???????????# """#?????? #?? | | ???????????# """#??????#######?? | | ???????????# #??????????????? | | ???????????# #??????????????? | | ???????????### ####??????????????? | | ?????????????# #?????????????????? | | ?????????????# ?????????????????? | | ?????????????###?????????????????? | | ?????????????????????????????????? | | ?????????????????????????????????? | | ?????????????????????????????????? | +----------------------------------------------------+ Best States ------------- Heat Dissipation 25 Energy Generation 10 Energy Capacity 250 Matter Stores 300 Matter Capacity 300 Sight Range 16 Terrain Scan Density 10 Armor Coverage 150 Evasion (%) 55 Recoil Reduction 2 Item Schematics ----------------- None Robot Schematics ------------------ None Fabricated ------------ Nothing Repaired ---------- Nothing Studied --------- None Alien Tech Used ----------------- None Achievements -------------- None Challenges ------------ None Game ------ Seed HybridPitchforkWings Manual? 0 Play Time 00:06:43 Cumulative 230.4 hours Start 2025.12.25 @ 13:25:41 End 2025.12.25 @ 13:31:36 Sessions 1 Manual Loads 0 Difficulty Rogue Special Mode None Game No. 312 Rogue 311 Adventurer 1 Explorer 0 Win Type - Total 2 Types 1/0/0/1/0/0/0/0/0/0 Lore% 69 Gallery% 63 Achievement% 55 Wizard Run 0 Options --------- Layout 0 ASCII 0 Keyboard 0 Movement Numpad Keybinds 0 Fullscreen 1 Font 24/Smallcaps Map View 76x50 Zoom Use 0% Tactical HUD 1 Map Filters NONE Filters NONE Steam 1 RUN: a9efcd91-24d6-4544-a72c-dc799fdc893e